bitfinex-derivatives/quotes_BTCF0:USTF0_20251210
["timestamp","ask_amount","ask_price","bid_price","bid_amount"]
[1765395904201,0.3608,92685.0,92672.0,0.0107898]
[1765395904395,0.3608,92685.0,92664.0,0.3608]
[1765395904701,0.00016182,92684.0,92665.0,0.00016182]
[1765395904900,0.3608,92676.0,92665.0,0.00016182]
[1765395905095,0.3608,92676.0,92672.0,0.0107898]
[1765395905301,0.3608,92676.0,92668.0,0.0107903]
[1765395905498,0.3608,92676.0,92672.0,0.0107898]
[1765395905898,0.3618,92676.0,92672.0,0.0107898]
[1765395906087,0.001,92676.0,92672.0,0.0107898]
[1765395906291,0.001,92676.0,92670.0,0.3608]
[1765395906292,0.3608,92706.0,92692.0,0.0107874]
[1765395906492,0.0107863,92703.0,92687.0,0.010788]
[1765395906698,0.0107863,92703.0,92686.0,0.3608]
[1765395906699,0.3608,92725.0,92694.0,0.3608]
[1765395906900,0.3608,92725.0,92678.0,0.00975363]
[1765395906901,0.3608,92725.0,92723.0,0.0107838]
[1765395907097,0.3608,92743.0,92730.0,0.010783]
[1765395907299,0.3608,92762.0,92745.0,0.0107813]
[1765395907603,0.0107789,92767.0,92756.0,0.3608]
[1765395907803,0.3608,92756.0,92725.0,0.3715836]
[1765395907994,0.0107797,92759.0,92725.0,0.3608]
[1765395908189,0.3608,92761.0,92747.0,0.3608]
[1765395908496,0.007,92743.0,92727.0,0.0107834]
[1765395908697,0.0107822,92738.0,92721.0,0.3715841]
[1765395908889,0.003,92743.0,92726.0,0.00016173]
[1765395909094,0.0107824,92737.0,92726.0,0.00016173]
[1765395909402,0.0107822,92738.0,92726.0,0.00016173]
[1765395909605,0.004,92743.0,92733.0,0.0107827]
[1765395909790,0.004,92743.0,92732.0,0.3608]
[1765395910099,0.004,92743.0,92741.0,0.0107817]
[1765395910307,0.001,92743.0,92740.0,0.3608]
[1765395910601,0.0107817,92742.0,92740.0,0.3608]
[1765395910799,0.0107817,92742.0,92732.0,0.3608]
[1765395910800,0.001,92743.0,92742.0,0.0107817]
[1765395910997,0.00016081,92744.0,92742.0,0.0107817]
[1765395911196,0.00016081,92744.0,92732.0,0.3608]
[1765395911797,0.00016081,92744.0,92741.0,0.0107818]
[1765395912001,0.004,92759.0,92756.0,0.01078]
[1765395912198,0.004,92759.0,92740.0,0.3628]
[1765395912199,0.004,92759.0,92750.0,0.3608]
[1765395912401,0.0107778,92776.0,92756.0,0.01078]
[1765395912804,0.3715777,92777.0,92760.0,0.0107795]
[1765395913010,0.3608,92769.0,92759.0,0.00016173]
[1765395913300,0.0107787,92768.0,92759.0,0.00016173]
[1765395913704,0.3608,92769.0,92759.0,0.00016173]
[1765395913895,0.3608,92778.0,92762.0,0.3608]
[1765395914091,0.3608,92787.0,92771.0,0.3715782]
[1765395914293,0.3608,92789.0,92779.0,0.3608]
[1765395915207,0.0107763,92788.0,92779.0,0.3608]
[1765395915707,0.0107777,92777.0,92775.0,0.00016173]
[1765395916096,0.3608,92781.0,92775.0,0.00016173]
[1765395916498,0.3628,92789.0,92775.0,0.00016173]
[1765395916807,0.3668,92789.0,92775.0,0.00016173]
[1765395917004,0.006,92789.0,92780.0,0.3608]
[1765395917199,0.006,92789.0,92788.0,0.3608]
[1765395917604,0.004,92789.0,92788.0,0.3608]
[1765395917800,0.002,92789.0,92788.0,0.3608]
[1765395918300,0.3608,92807.0,92788.0,0.3608]
[1765395918500,0.0107763,92788.0,92775.0,0.00016173]
[1765395918704,0.001,92789.0,92780.0,0.3608]
[1765395919209,0.001,92789.0,92780.0,0.3715772]
[1765395919703,0.001,92789.0,92775.0,0.00016173]
[1765395919704,0.0107769,92784.0,92775.0,0.00016173]
[1765395919909,0.3608,92780.0,92775.0,0.00016173]
[1765395920113,0.3608,92798.0,92788.0,0.001]
[1765395920609,0.3608,92809.0,92788.0,0.001]
[1765395920610,0.002,92807.0,92793.0,0.3608]
[1765395920805,0.002,92807.0,92802.0,0.0107747]
[1765395920995,0.002,92807.0,92805.0,0.0107743]
[1765395921200,0.3608,92833.0,92807.0,0.0107741]
[1765395921496,0.3608,92833.0,92828.0,0.0107716]
[1765395921697,0.3608,92833.0,92824.0,0.3608]
[1765395921898,0.3608,92833.0,92825.0,0.010772]
[1765395922098,0.3608,92833.0,92829.0,0.0107716]
[1765395922404,0.3628,92833.0,92824.0,0.3608]
[1765395922612,0.3628,92833.0,92828.0,0.0107716]
[1765395923105,0.3628,92833.0,92824.0,0.3715721]
[1765395923307,0.005,92833.0,92832.0,0.0107712]
[1765395923507,0.005,92833.0,92828.0,0.0107717]
[1765395923698,0.3608,92848.0,92832.0,0.3608]
[1765395923895,0.3608,92857.0,92821.0,0.0107724]
[1765395923896,0.3608,92850.0,92840.0,0.0107703]
[1765395925210,0.3608,92892.0,92877.0,0.0107659]
[1765395925418,0.3608,92892.0,92875.0,0.00016145]
[1765395925614,0.3608,92886.0,92875.0,0.00016145]
[1765395925804,0.3608,92886.0,92871.0,0.00016145]
[1765395925805,0.3608,92878.0,92871.0,0.00016145]
[1765395927015,0.010766,92877.0,92871.0,0.00016145]
[1765395927199,0.7216,92878.0,92871.0,0.00016145]
[1765395927610,0.7216,92878.0,92871.0,0.00116145]
[1765395927915,0.7216,92878.0,92871.0,0.00216145]
[1765395928113,0.3608,92878.0,92876.0,0.010766]
[1765395928817,0.3608,92898.0,92875.0,0.0107662]
[1765395929013,0.3608,92898.0,92872.0,0.0107665]
[1765395929212,0.3608,92898.0,92882.0,0.0107654]
[1765395929804,0.3608,92890.0,92871.0,0.36096145]
[1765395930001,0.3715646,92890.0,92871.0,0.36096145]
[1765395930212,0.3608,92873.0,92871.0,0.00016145]
[1765395930412,0.3608,92890.0,92874.0,0.0107663]
[1765395930717,0.3608,92890.0,92872.0,0.3608]
[1765395931012,0.3628,92890.0,92871.0,0.00016145]
[1765395931218,0.3608,92881.0,92871.0,0.00016145]
[1765395931414,0.3608,92873.0,92871.0,0.00016145]
[1765395931607,0.3608,92882.0,92871.0,0.00016145]
[1765395931803,0.3608,92872.0,92871.0,0.00016145]
[1765395932108,0.3608,92882.0,92871.0,0.01092815]
[1765395932306,0.3608,92874.0,92871.0,0.00016145]
[1765395932510,0.3715665,92874.0,92871.0,0.00016145]
[1765395932815,0.3715665,92874.0,92823.0,0.3608]
[1765395932816,0.50767507,92873.0,92823.0,0.3608]
[1765395933112,0.3608,92842.0,92836.0,0.0107707]
[1765395933312,0.3608,92852.0,92823.0,0.3608]
[1765395933502,0.3608,92871.0,92845.0,0.3608]
[1765395933709,0.3608,92861.0,92850.0,0.010769]
[1765395933909,0.3608,92861.0,92858.0,0.0107682]
[1765395934321,0.00016082,92865.0,92863.0,0.0107676]
[1765395935012,0.00016082,92865.0,92854.0,0.3608]
[1765395935217,0.3608,92862.0,92854.0,0.3608]
[1765395935510,0.00016082,92865.0,92846.0,0.00016154]
[1765395935511,0.7216,92855.0,92846.0,0.00016154]
[1765395935718,0.3608,92847.0,92846.0,0.00016154]
[1765395935915,0.3608,92847.0,92836.0,0.0107707]
[1765395935916,0.01077,92843.0,92826.0,0.0107718]
[1765395936113,0.3608,92827.0,92810.0,0.3608]
[1765395936314,0.3608,92819.0,92785.0,0.3608]
[1765395936518,0.3608,92819.0,92807.0,0.010774]
[1765395937021,0.3608,92819.0,92785.0,0.3608]
[1765395937022,0.3608,92819.0,92810.0,0.0107738]
[1765395937208,0.3608,92811.0,92809.0,0.00016154]
[1765395937408,0.3608,92811.0,92810.0,0.0107738]
[1765395937813,0.3608,92811.0,92809.0,0.00016154]
[1765395938019,0.00011427,92810.0,92809.0,0.00016154]
[1765395938216,0.73248807,92810.0,92809.0,0.00016154]
[1765395938410,0.72171427,92810.0,92809.0,0.00016154]
[1765395938609,0.00011427,92810.0,92809.0,0.00016154]
[1765395939823,0.00111427,92810.0,92809.0,0.00416154]
[1765395940521,0.00111427,92810.0,92809.0,0.00316154]
[1765395940916,0.00111427,92810.0,92809.0,0.00016154]
[1765395941118,0.00111427,92810.0,92809.0,0.00316154]
[1765395941512,0.00011427,92810.0,92809.0,0.00316154]
[1765395941732,0.00011427,92810.0,92809.0,0.00516154]
[1765395942328,0.00011427,92810.0,92809.0,0.00316154]
[1765395942836,0.00011427,92810.0,92809.0,0.00116154]
[1765395943435,0.0107668,92871.0,92809.0,0.00116154]
[1765395943436,0.3608,92839.0,92809.0,0.45496154]
[1765395943634,0.3608,92829.0,92821.0,0.0107725]
[1765395943935,0.3608,92829.0,92809.0,0.001]
[1765395944123,0.3608,92816.0,92809.0,0.007]
[1765395944327,0.3608,92816.0,92815.0,0.0107731]
[1765395944539,0.00016113,92822.0,92821.0,0.0107725]
[1765395944737,0.00016113,92822.0,92812.0,0.0107735]
[1765395944934,0.00016113,92822.0,92809.0,0.009]
[1765395945138,0.3608,92810.0,92809.0,0.009]
[1765395945530,0.3608,92810.0,92809.0,0.006]
[1765395945733,0.3608,92810.0,92803.0,0.00016163]
[1765395946225,0.00116113,92822.0,92815.0,0.0107731]
[1765395946425,0.3608,92816.0,92815.0,0.0107731]
[1765395946630,0.3608,92816.0,92811.0,0.0107736]
[1765395946835,0.3608,92816.0,92815.0,0.0107732]
[1765395947340,0.3608,92816.0,92814.0,0.0107732]
[1765395948738,0.3608,92835.0,92834.0,0.010771]
[1765395949038,0.3608,92844.0,92843.0,0.01077]
[1765395949243,0.3608,92844.0,92825.0,0.27375798]
[1765395949431,0.3608,92832.0,92829.0,0.0107715]
[1765395950540,0.3608,92832.0,92829.0,0.0127715]
[1765395950847,0.3608,92844.0,92841.0,0.0107702]
[1765395951140,0.3608,92844.0,92829.0,0.002]
[1765395951141,0.3618,92844.0,92843.0,0.01077]
[1765395951335,0.3618,92844.0,92838.0,0.0107705]
[1765395951531,0.3608,92863.0,92862.0,0.0107678]
[1765395951733,0.7216,92863.0,92853.0,0.00016153]
[1765395951929,0.3608,92863.0,92854.0,0.0107687]
[1765395952243,0.3608,92863.0,92862.0,0.0107678]
[1765395952831,0.3648,92863.0,92862.0,0.0107678]
[1765395953140,0.3648,92863.0,92854.0,0.001]
[1765395953442,0.3608,92855.0,92854.0,0.001]
[1765395953639,0.0107687,92854.0,92853.0,0.00016153]
[1765395953849,0.3715686,92855.0,92853.0,0.00016153]
[1765395954342,0.3608,92855.0,92853.0,0.00016153]
[1765395954544,0.0107687,92854.0,92853.0,0.00016153]
[1765395954839,0.0107718,92828.0,92802.0,0.0107747]
[1765395955043,0.0107718,92828.0,92773.0,0.3608]
[1765395955044,0.3608,92803.0,92773.0,0.3608]
[1765395955230,0.3608,92794.0,92773.0,0.451578]
[1765395955430,0.3608,92794.0,92786.0,0.0107765]
[1765395955630,0.3608,92788.0,92781.0,0.00016162]
[1765395955831,0.3608,92784.0,92782.0,0.010777]
[1765395957045,0.3608,92784.0,92782.0,0.013777]
[1765395957447,0.3608,92784.0,92782.0,0.010777]
[1765395957645,0.3608,92784.0,92782.0,0.015777]
[1765395957836,0.00016149,92799.0,92796.0,0.0107753]
[1765395958036,0.00016149,92799.0,92796.0,0.3715753]
[1765395958237,0.3608,92822.0,92821.0,0.0107725]
[1765395958443,0.3608,92822.0,92815.0,0.0107732]
[1765395958745,0.3608,92822.0,92784.0,0.0538838]
[1765395958746,0.12797836,92821.0,92782.0,0.008]
[1765395958940,0.12797836,92821.0,92782.0,0.003]
[1765395958941,0.0107747,92802.0,92782.0,0.003]
[1765395959146,0.3608,92784.0,92782.0,0.007]
[1765395959345,0.3608,92784.0,92782.0,0.017777]
[1765395959547,0.3608,92784.0,92782.0,0.003]
[1765395959848,0.3608,92784.0,92783.0,0.0107769]
[1765395960235,0.0202,92821.0,92783.0,0.0107769]
[1765395960236,0.3608,92803.0,92801.0,0.0107748]
[1765395960435,0.3608,92814.0,92807.0,0.0107741]
[1765395960643,0.3608,92814.0,92793.0,0.00016162]
[1765395960945,0.3608,92798.0,92793.0,0.00016162]
[1765395961653,0.0107772,92781.0,92764.0,0.0107791]
[1765395961837,0.3608,92765.0,92740.0,0.27375798]
[1765395962038,0.3608,92755.0,92744.0,0.0107814]
[1765395962248,0.3608,92755.0,92740.0,0.27375798]
[1765395962451,0.3608,92755.0,92745.0,0.00016172]
[1765395962648,0.0107809,92749.0,92745.0,0.00016172]
[1765395962836,0.7216,92749.0,92719.0,0.0107843]
[1765395963151,0.3608,92725.0,92720.0,0.27375798]
[1765395963446,0.3608,92725.0,92723.0,0.0107838]
[1765395963653,8.913e-05,92724.0,92723.0,0.0107838]
[1765395963838,0.3608,92764.0,92732.0,0.0107828]
[1765395964040,0.3608,92764.0,92763.0,0.0107792]
[1765395964856,0.3608,92768.0,92767.0,0.0107788]
[1765395965047,0.3608,92768.0,92730.0,0.3608]
[1765395965048,0.0107802,92755.0,92730.0,0.3608]
[1765395965249,0.3608,92752.0,92740.0,0.27375798]
[1765395965752,0.3608,92752.0,92715.0,0.3608]
[1765395965753,0.3608,92741.0,92738.0,0.010782]
[1765395965941,0.3608,92741.0,92730.0,0.27375798]
[1765395966145,0.00016172,92745.0,92739.0,0.010782]
[1765395966347,0.3608,92740.0,92735.0,0.27375798]
[1765395966649,0.3608,92740.0,92726.0,0.00016172]
[1765395966847,0.3608,92732.0,92726.0,0.00016172]
[1765395967252,0.3608,92732.0,92731.0,0.010783]
[1765395967551,0.00016172,92745.0,92735.0,0.0107825]
[1765395967740,0.3608,92739.0,92730.0,0.27375798]
[1765395968149,0.3608,92739.0,92730.0,0.27575798]
[1765395968375,0.00016172,92745.0,92739.0,0.010782]
[1765395968538,0.00016172,92745.0,92730.0,0.27575798]
[1765395968539,0.3608,92742.0,92731.0,0.0107829]
[1765395968739,0.3608,92742.0,92730.0,0.27375798]
[1765395968949,0.3608,92742.0,92735.0,0.0117824]
[1765395969342,0.3608,92742.0,92734.0,0.0107826]
[1765395969658,0.3608,92742.0,92739.0,0.011782]
[1765395969851,0.00016172,92745.0,92739.0,0.011782]
[1765395969852,0.00016172,92745.0,92744.0,0.0107815]
[1765395970249,0.3608,92760.0,92758.0,0.0107798]
[1765395970444,0.3608,92760.0,92750.0,0.27375798]
[1765395970644,0.3608,92752.0,92751.0,0.0107806]
[1765395970858,0.3608,92752.0,92745.0,0.0107813]
[1765395971047,0.3608,92752.0,92748.0,0.0107809]
[1765395971242,0.3608,92752.0,92740.0,0.27375798]
[1765395971243,0.3608,92752.0,92743.0,0.0107815]
[1765395971550,0.3608,92744.0,92743.0,0.0107815]
[1765395971947,0.00016172,92759.0,92743.0,0.0107815]
[1765395971948,0.00016172,92759.0,92757.0,0.0107798]
[1765395972150,0.00016172,92759.0,92749.0,0.28453878]
[1765395972353,0.3608,92753.0,92748.0,0.0127809]
[1765395972547,0.3608,92753.0,92748.0,0.002]
[1765395972756,0.3608,92753.0,92747.0,0.0107811]
[1765395973059,0.3608,92753.0,92747.0,0.010781]
[1765395973260,0.3608,92753.0,92751.0,0.0107805]
[1765395973646,0.3608,92753.0,92748.0,0.003]
[1765395973851,0.3608,92749.0,92748.0,0.003]
[1765395974351,0.3608,92749.0,92748.0,0.006]
[1765395974555,0.00016172,92759.0,92758.0,0.0107798]
[1765395974752,0.3608,92779.0,92758.0,0.3608]
[1765395975051,0.3608,92779.0,92769.0,0.21804238]
[1765395975352,0.3608,92770.0,92761.0,0.0107795]
[1765395975564,0.3608,92770.0,92760.0,0.21804238]
[1765395975565,0.3608,92770.0,92768.0,0.0107786]
[1765395975946,0.3608,92786.0,92785.0,0.0107767]
[1765395976252,0.00107771,92790.0,92789.0,0.0107762]
[1765395977360,0.00107771,92790.0,92786.0,0.0107765]
[1765395977548,0.00107771,92790.0,92780.0,0.2182041]
[1765395977852,0.3608,92781.0,92780.0,0.00016172]
[1765395978260,0.00107771,92790.0,92789.0,0.0107762]
[1765395978760,0.3608,92811.0,92786.0,0.002]
[1765395978761,0.3608,92801.0,92800.0,0.0107749]
[1765395979653,0.3608,92822.0,92821.0,0.0107725]
[1765395979854,0.3608,92822.0,92810.0,0.0107738]
[1765395979855,0.3608,92822.0,92812.0,0.00016163]
[1765395980351,0.3608,92813.0,92812.0,0.00016163]
[1765395980849,0.3608,92813.0,92812.0,0.01093523]
[1765395981052,0.3608,92813.0,92812.0,0.00016163]
[1765395981450,0.3715734,92813.0,92812.0,0.00016163]
[1765395981652,0.3715734,92813.0,92800.0,0.21904238]
[1765395981653,0.0107748,92801.0,92800.0,0.002]
[1765395981854,0.3715748,92801.0,92800.0,0.002]
[1765395982146,0.0107769,92783.0,92770.0,0.22882078]
[1765395982351,0.3608,92778.0,92775.0,0.0107778]
[1765395983446,0.00016155,92786.0,92768.0,0.21804238]
[1765395983447,0.00016155,92786.0,92785.0,0.0107767]
[1765395983661,0.3608,92801.0,92785.0,0.0107767]
[1765395983844,0.3608,92801.0,92800.0,0.0107749]
[1765395984250,0.3608,92822.0,92821.0,0.0107725]
[1765395984548,0.3608,92839.0,92838.0,0.0107705]
[1765395984758,0.36101542,92841.0,92829.0,0.21820401]
[1765395984948,0.36101542,92841.0,92838.0,0.0107705]
[1765395985253,0.36101542,92841.0,92836.0,0.0107707]
[1765395985452,0.36101542,92841.0,92832.0,0.0107711]
[1765395985652,0.3608,92833.0,92829.0,0.00016163]
[1765395985858,0.3715711,92833.0,92829.0,0.00016163]
[1765395986056,0.3608,92833.0,92829.0,0.00016163]
[1765395986261,0.0107712,92832.0,92829.0,0.00016163]
[1765395986650,0.0107741,92808.0,92793.0,0.0107757]
[1765395986852,0.21804238,92840.0,92814.0,0.0107732]
[1765395986853,0.3608,92817.0,92814.0,0.0107732]
[1765395987362,0.3608,92825.0,92821.0,0.0107725]
[1765395987764,0.3608,92825.0,92817.0,0.0107729]
[1765395987960,0.3608,92825.0,92821.0,0.0107724]
[1765395988159,0.00016163,92832.0,92829.0,0.0107715]
[1765395988758,0.00016163,92832.0,92821.0,0.001]
[1765395988759,0.3608,92830.0,92821.0,0.001]
[1765395988962,0.3608,92822.0,92821.0,0.001]
[1765395989262,0.3608,92822.0,92814.0,0.00016163]
[1765395989864,0.3608,92822.0,92814.0,0.01093493]
[1765395990058,0.3608,92822.0,92819.0,0.0107726]
[1765395990251,0.3608,92822.0,92821.0,0.0107725]
[1765395990459,0.3608,92822.0,92814.0,0.00016163]
[1765395990460,0.3608,92822.0,92817.0,0.0107729]
[1765395990653,0.3608,92822.0,92815.0,0.0107732]
[1765395990858,0.3608,92822.0,92814.0,0.00016163]
[1765395991061,0.3608,92822.0,92817.0,0.0107729]
[1765395991261,0.3608,92822.0,92820.0,0.0107726]
[1765395991461,0.00016163,92832.0,92817.0,0.3608]
[1765395991661,0.3608,92822.0,92821.0,0.0107725]
[1765395992456,0.3608,92830.0,92825.0,0.010772]
[1765395992657,0.3608,92830.0,92818.0,0.0107728]
[1765395992858,0.3608,92820.0,92818.0,0.0107728]
[1765395993058,0.3608,92830.0,92825.0,0.010772]
[1765395993364,0.3608,92830.0,92820.0,0.22881488]
[1765395993560,0.3608,92821.0,92820.0,0.0107726]
[1765395993759,0.3608,92830.0,92829.0,0.0107716]
[1765395994561,0.00016163,92832.0,92829.0,0.0107716]
[1765395994768,0.001,92830.0,92829.0,0.0107716]
[1765395994967,0.001,92830.0,92829.0,0.0117716]
[1765395995863,0.001,92830.0,92829.0,0.001]
[1765395996063,0.3618,92830.0,92829.0,0.001]
[1765395996261,0.3608,92830.0,92829.0,0.001]
[1765395996456,0.3608,92830.0,92829.0,0.003]
[1765395997269,0.3608,92830.0,92829.0,0.002]
[1765395997473,0.3608,92830.0,92829.0,0.003]
[1765395997669,0.3608,92830.0,92829.0,0.001]
[1765395997866,0.3608,92830.0,92829.0,0.002]
[1765395998071,0.3608,92830.0,92829.0,0.001]
[1765395998268,0.00016163,92832.0,92831.0,0.0107713]
[1765395998972,0.3608,92859.0,92840.0,0.0107703]
[1765395999167,0.3608,92859.0,92856.0,0.0107684]
[1765395999468,0.3608,92876.0,92867.0,0.0107671]
[1765395999671,0.3608,92868.0,92861.0,0.0107678]
[1765395999974,0.3608,92885.0,92865.0,0.0107674]
[1765396000271,0.3608,92885.0,92867.0,0.3608]
[1765396000468,0.3608,92876.0,92860.0,0.21804238]
[1765396000668,0.3608,92876.0,92875.0,0.0107662]
[1765396001175,0.3608,92876.0,92871.0,0.0107666]
[1765396001470,0.3608,92876.0,92873.0,0.0107664]
[1765396001871,0.3678,92885.0,92878.0,0.0107658]
[1765396002066,0.3648,92885.0,92878.0,0.0107658]
[1765396002564,0.3608,92885.0,92874.0,0.0107663]
[1765396002769,0.3628,92876.0,92868.0,0.010767]
[1765396002976,0.3628,92876.0,92860.0,0.21804238]
[1765396003167,0.3628,92876.0,92858.0,0.3608]
[1765396003168,0.3608,92876.0,92871.0,0.0107667]
[1765396003371,0.3608,92876.0,92866.0,0.21804238]
[1765396003372,0.3648,92885.0,92866.0,0.21804238]
[1765396003575,0.3678,92885.0,92874.0,0.0107663]
[1765396003878,0.002,92876.0,92866.0,0.57884238]
[1765396004179,0.002,92876.0,92872.0,0.0107665]
[1765396004475,0.002,92876.0,92866.0,0.57884238]
[1765396004671,0.002,92876.0,92873.0,0.0107664]
[1765396005176,0.3608,92874.0,92858.0,0.3608]
[1765396005377,0.3608,92874.0,92847.0,0.3608]
[1765396005378,0.3608,92866.0,92849.0,0.0107692]
[1765396005577,0.3608,92866.0,92852.0,0.0107688]
[1765396005779,0.3608,92866.0,92847.0,0.3608]
[1765396005780,0.3608,92866.0,92854.0,0.0107686]
[1765396005976,0.3715673,92866.0,92854.0,0.0107686]
[1765396006378,0.3608,92866.0,92856.0,0.0107684]
[1765396006677,0.3608,92866.0,92850.0,0.21804238]
[1765396006879,0.3608,92866.0,92861.0,0.0107678]
[1765396007279,0.3608,92874.0,92872.0,0.0107665]
[1765396007574,0.3608,92885.0,92866.0,0.3608]
[1765396007773,0.00107655,92890.0,92889.0,0.0107646]
[1765396008779,0.00107655,92890.0,92884.0,0.3608]
[1765396009178,0.00107655,92890.0,92884.0,0.0107651]
[1765396009379,0.00107655,92890.0,92880.0,0.21820392]
[1765396009380,0.3608,92886.0,92880.0,0.00016154]
[1765396009967,0.00107655,92890.0,92884.0,0.001]
[1765396010481,0.3608,92886.0,92880.0,0.00016154]
[1765396010780,0.3608,92886.0,92880.0,0.00116154]
[1765396010979,0.3608,92886.0,92885.0,0.0107651]
[1765396011177,0.00107655,92890.0,92880.0,0.00116154]
[1765396011178,0.00107655,92890.0,92888.0,0.0107647]
[1765396011881,0.00107655,92890.0,92880.0,0.21920392]
[1765396011882,0.0107652,92884.0,92880.0,0.00116154]
[1765396012076,0.3608,92881.0,92880.0,0.00016154]
[1765396013973,0.0107688,92853.0,92836.0,0.0107707]
[1765396014285,0.010766,92878.0,92833.0,0.371571]
[1765396014286,0.3608,92851.0,92833.0,0.371571]
[1765396014477,0.3608,92836.0,92832.0,0.0107711]
[1765396014678,0.3608,92836.0,92834.0,0.010771]
[1765396014881,0.3608,92851.0,92829.0,0.3608]
[1765396015080,0.00016124,92849.0,92847.0,0.0107695]
[1765396015582,0.3608,92848.0,92843.0,0.0107699]
[1765396015779,0.3608,92848.0,92846.0,0.0107696]
[1765396015976,0.00016124,92849.0,92846.0,0.3715696]
[1765396016877,0.00016124,92849.0,92846.0,0.3725696]
[1765396017187,0.00016124,92849.0,92846.0,0.0117696]
[1765396017584,0.00016124,92849.0,92846.0,0.0127696]
[1765396017883,0.00016124,92849.0,92846.0,0.002]
[1765396017884,0.0107695,92847.0,92846.0,0.002]
[1765396018184,0.3715695,92848.0,92846.0,0.006]
[1765396018370,0.0107712,92832.0,92812.0,0.0107735]
[1765396018577,0.0107734,92813.0,92768.0,0.3608]
[1765396018880,0.0107734,92813.0,92763.0,0.433]
[1765396018881,0.21804238,92790.0,92786.0,0.0107765]
[1765396019076,0.3608,92787.0,92786.0,0.0107765]
[1765396019381,0.3608,92810.0,92807.0,0.0107741]
[1765396019582,0.3608,92810.0,92800.0,0.0107749]
[1765396019790,0.3608,92801.0,92800.0,0.0107749]
[1765396019987,0.00012526,92809.0,92808.0,0.010774]
[1765396020384,0.00012526,92809.0,92808.0,0.371574]
[1765396020593,0.00016165,92814.0,92813.0,0.0107734]
[1765396021387,0.3608,92843.0,92842.0,0.0107701]
[1765396021785,0.3608,92864.0,92861.0,0.0107678]
[1765396021978,0.3608,92864.0,92835.0,0.0107708]
[1765396021979,0.3608,92864.0,92845.0,0.3608]
[1765396022184,0.21804238,92880.0,92823.0,0.3608]
[1765396022185,0.3608,92846.0,92823.0,0.3608]
[1765396022391,0.3608,92836.0,92829.0,0.0107716]
[1765396022688,0.3608,92836.0,92829.0,0.0107715]
[1765396022884,0.00016122,92842.0,92823.0,0.00016156]
[1765396023086,0.3608,92828.0,92823.0,0.00016156]
[1765396023286,0.3608,92828.0,92744.0,0.31522837]
[1765396023287,0.3608,92828.0,92780.0,0.3608]
[1765396023490,0.3608,92789.0,92763.0,0.3608]
[1765396023686,0.3608,92768.0,92747.0,0.3608]
[1765396023886,0.3608,92779.0,92756.0,0.3608]
[1765396023887,0.3608,92769.0,92756.0,0.3608]
[1765396024097,0.3608,92769.0,92759.0,0.21804238]
[1765396024293,0.3608,92769.0,92755.0,0.00016168]
[1765396024490,0.3608,92769.0,92764.0,0.0107791]
[1765396024692,0.3608,92769.0,92763.0,0.009]
[1765396024992,0.00016168,92773.0,92770.0,0.0107783]
[1765396025196,0.3608,92787.0,92786.0,0.0107766]
[1765396025384,0.7216,92787.0,92777.0,0.0107776]
[1765396025585,0.3608,92778.0,92763.0,0.009]
[1765396025788,0.3608,92766.0,92763.0,0.009]
[1765396025986,0.3608,92766.0,92763.0,0.002]
[1765396026182,0.3608,92766.0,92764.0,0.0107791]
[1765396026387,0.00016148,92774.0,92773.0,0.0107781]
[1765396026699,0.3608,92792.0,92783.0,0.0107768]
[1765396026700,0.001,92787.0,92783.0,0.0107768]
[1765396026993,0.001,92787.0,92773.0,0.3608]
[1765396027192,0.3608,92776.0,92768.0,0.0107786]
[1765396027403,0.3608,92774.0,92748.0,0.00021542]
[1765396027593,0.21804238,92780.0,92768.0,0.0107786]
[1765396027790,0.010777,92782.0,92773.0,0.002]
[1765396028099,0.3608,92783.0,92773.0,0.002]
[1765396028500,0.0107708,92836.0,92773.0,0.002]
[1765396028501,0.3608,92808.0,92783.0,0.0107768]
[1765396028800,0.3608,92808.0,92805.0,0.0107744]
[1765396028985,0.3608,92808.0,92798.0,0.21804238]
[1765396028986,0.0107716,92829.0,92807.0,0.371574]
[1765396029184,0.21804238,92820.0,92809.0,0.00016158]
[1765396029388,0.3608,92824.0,92810.0,0.0107738]
[1765396029891,0.3608,92824.0,92813.0,0.0107733]
[1765396030100,0.21804238,92823.0,92809.0,0.00016158]
[1765396030284,0.003,92820.0,92810.0,0.0107738]
[1765396030489,0.003,92820.0,92814.0,0.0107732]
[1765396030689,0.003,92820.0,92810.0,0.0107738]
[1765396030890,0.003,92820.0,92809.0,0.00016158]
[1765396031292,0.003,92820.0,92819.0,0.0107727]
[1765396031695,0.3608,92853.0,92819.0,0.0107727]
[1765396031897,0.21804238,92850.0,92828.0,0.3608]
[1765396032092,0.3608,92841.0,92830.0,0.00016158]
[1765396032285,0.3608,92841.0,92830.0,0.01093298]
[1765396032491,0.21804238,92850.0,92832.0,0.3608]
[1765396032690,0.0107691,92851.0,92832.0,0.3608]
[1765396032888,0.3608,92852.0,92839.0,0.0107703]
[1765396033090,0.3608,92852.0,92840.0,0.57884238]
[1765396033292,0.3608,92852.0,92841.0,0.0107702]
[1765396033587,0.05395,93041.0,92840.0,0.3608]
[1765396033588,0.010766,92877.0,92857.0,0.0107683]
[1765396033785,0.3608,92878.0,92851.0,0.3608]
[1765396033786,0.010767,92869.0,92858.0,0.00016158]
[1765396033988,0.57884238,92870.0,92858.0,0.00016158]
[1765396034295,0.010767,92869.0,92858.0,0.00016158]
[1765396034701,0.3715679,92862.0,92858.0,1.58e-06]
[1765396035792,0.3608,92862.0,92858.0,1.58e-06]
[1765396035993,0.3618,92862.0,92858.0,1.58e-06]
[1765396036501,0.7658,92862.0,92840.0,0.3608]
[1765396036704,0.3608,92849.0,92840.0,0.3608]
[1765396036909,0.3715688,92854.0,92840.0,0.3715702]
[1765396037100,0.3715688,92854.0,92844.0,0.0107698]
[1765396037402,0.004,92862.0,92849.0,0.3608]
[1765396037792,0.004,92862.0,92861.0,0.0107679]
[1765396037994,0.004,92862.0,92860.0,0.3608]
[1765396038291,0.001,92862.0,92860.0,0.3608]
[1765396038491,0.001,92862.0,92861.0,0.0107679]
[1765396038492,0.003,92862.0,92861.0,0.0107679]
[1765396038692,0.003,92862.0,92860.0,0.3608]